[Event "2nd Serbian League-Vojvodina 2023"]
[Site "Novi Sad"]
[Date "2023.11.02"]
[Round "1.10"]
[White "Dragojlovic, Andjelko"]
[Black "Dimitrijevic, Nenad"]
[Result "1/2-1/2"]
[ECO "B01"]
[WhiteElo "2108"]
[BlackElo "2196"]
[Annotator "ChessBase"]
[PlyCount "76"]
[EventDate "2023.10.22"]
[EventType "team-tourn"]
[EventCountry "SRB"]
[SourceTitle "playchess.com"]
[Source "ChessBase"]
[SourceQuality "1"]
[TimeControl "40/5400+30:1800+30"]

1. e4 {[%emt 0:02:31]} d5 {[%emt 0:00:31]} 2. exd5 {[%emt 0:00:16]} Qxd5 {[%emt 0:00:02]} 3. Nc3 {[%emt 0:00:18]} Qd6 {[%emt 0:00:17]} 4. d4 {[%emt 0:00:42]} Nf6 {[%emt 0:00:26]} 5. Nf3 {[%emt 0:01:56]} c6 {[%emt 0:01:20]} 6. g3 {[%emt 0:01:50]} Bf5 {[%emt 0:01:34]} 7. Bg2 {[%emt 0:00:41]} e6 {[%emt 0:00:04]} 8. O-O {[%emt 0:00:49]} Qc7 {[%emt 0:00:25]} 9. Re1 {[%emt 0:01:32]} Be7 {[%emt 0:00:51]} 10. Bf4 {[%emt 0:01:37]} Bd6 {[%emt 0:05:17]} 11. Bg5 O-O {[%emt 0:07:19]} 12. Bxf6 {[%emt 0:06:47]} gxf6 {[%emt 0:00:04]} 13. Nh4 {[%emt 0:00:20]} Bg6 {[%emt 0:00:08]} 14. Qd2 {[%emt 0:03:56]} f5 {[%emt 0:03:57]} 15. Rad1 {[%emt 0:07:23]} Rd8 {[%emt 0:02:35]} 16. Ne2 {[%emt 0:02:26]} Nd7 {[%emt 0:06:24]} 17. c4 {[%emt 0:01:18]} Nf6 {[%emt 0:04:05]} 18. a3 {[%emt 0:08:22]} Bf8 {[%emt 0:08:45]} 19. Nc3 {[%emt 0:01:56]} Rd7 {[%emt 0:06:02]} 20. d5 {[%emt 0:02:04]} cxd5 {[%emt 0:50:24]} 21. cxd5 {[%emt 0:00:08]} exd5 {[%emt 0:00:00]} 22. Qg5 {[%emt 0:06:39]} d4 {[%emt 0:00:00]} 23. Qxf6 {[%emt 0:08:22]} Bg7 {[%emt 0:00:00]} 24. Qg5 {[%emt 0:01:07]} dxc3 {[%emt 0:00:00]} 25. bxc3 {[%emt 0:03:00]} Rxd1 {[%emt 0:00:00]} 26. Rxd1 {[%emt 0:00:08]} Qxc3 {[%emt 0:00:00]} 27. Bxb7 {[%emt 0:37:52]} Bf6 {[%emt 0:03:30]} 28. Qc1 {[%emt 0:00:30]} Qxc1 {[%emt 0:00:30]} 29. Rxc1 {[%emt 0:00:30]} Re8 {[%emt 0:00:30]} 30. Nxg6 {[%emt 0:00:00]} fxg6 {[%emt 0:00:00]} 31. a4 {[%emt 0:01:00]} Re7 {[%emt 0:01:00]} 32. Rc8+ {[%emt 0:00:00]} Kg7 {[%emt 0:00:30]} 33. Bd5 {[%emt 0:00:00]} Bd4 {[%emt 0:00:00]} 34. Kf1 {[%emt 0:01:30]} Bb6 {[%emt 0:01:00]} 35. f4 {[%emt 0:00:00]} Rd7 {[%emt 0:00:00]} 36. Rg8+ {[%emt 0:00:00]} Kf6 {[%emt 0:00:00]} 37. Rf8+ {[%emt 0:00:00]} Kg7 {[%emt 0:00:00]} 38. Rg8+ {[%emt 0:00:00]} Kf6 {[%emt 0:00:00]} 1/2-1/2

[Event "2nd Serbian League-Vojvodina 2023"]
[Site "Novi Sad"]
[Date "2023.11.02"]
[Round "1.11"]
[White "Sokic, Dragomir"]
[Black "Ilincic, Aleksa"]
[Result "1-0"]
[ECO "B11"]
[WhiteElo "2095"]
[BlackElo "2235"]
[Annotator "ChessBase"]
[PlyCount "87"]
[EventDate "2023.10.22"]
[EventType "team-tourn"]
[EventCountry "SRB"]
[SourceTitle "playchess.com"]
[Source "ChessBase"]
[SourceQuality "1"]
[TimeControl "40/5400+30:1800+30"]

1. e4 {[%emt 0:06:29]} c6 {[%emt 0:00:06]} 2. Nc3 {[%emt 0:01:05]} d5 {[%emt 0:00:05]} 3. d3 {[%emt 0:00:02]} e6 {[%emt 0:02:32]} 4. Nf3 {[%emt 0:00:26]} Bb4 {[%emt 0:00:58]} 5. Bd2 {[%emt 0:00:16]} Nf6 {[%emt 0:01:21]} 6. a3 {[%emt 0:01:26]} Be7 {[%emt 0:01:03]} 7. g3 {[%emt 0:03:18]} O-O {[%emt 0:01:11]} 8. Bg2 {[%emt 0:00:20]} c5 9. O-O d4 10. Ne2 {[%emt 0:09:28]} Nc6 {[%emt 0:06:32]} 11. b4 cxb4 12. axb4 Nxb4 13. Nexd4 e5 14. Nf5 Bxf5 {[%emt 0:12:16]} 15. exf5 {[%emt 0:10:48]} Qc7 16. Qb1 {[%emt 0:04:46]} a5 {[%emt 0:03:58]} 17. c3 {[%emt 1:00:36]} Nbd5 {[%emt 0:00:47]} 18. Qb2 {[%emt 0:00:30]} e4 {[%emt 1:08:41]} 19. Ne1 {[%emt 0:00:30]} exd3 {[%emt 0:00:00]} 20. Nxd3 {[%emt 0:00:00]} Rfd8 {[%emt 0:00:00]} 21. Nf4 {[%emt 0:00:00]} Nb6 {[%emt 0:00:00]} 22. Be3 {[%emt 0:00:00]} Nc4 {[%emt 0:00:00]} 23. Qxb7 {[%emt 0:00:00]} Qxb7 {[%emt 0:00:00]} 24. Bxb7 {[%emt 0:00:00]} Nxe3 {[%emt 0:03:00]} 25. fxe3 {[%emt 0:00:00]} Ra7 {[%emt 0:00:00]} 26. Bf3 {[%emt 0:00:00]} Bc5 {[%emt 0:01:00]} 27. Rfe1 {[%emt 0:00:00]} Re8 {[%emt 0:00:00]} 28. Kf2 {[%emt 0:00:00]} Ne4+ {[%emt 0:00:00]} 29. Bxe4 {[%emt 0:00:00]} Rxe4 {[%emt 0:00:00]} 30. Kf3 {[%emt 0:00:00]} Rc4 {[%emt 0:00:00]} 31. Red1 {[%emt 0:00:00]} h6 {[%emt 0:00:00]} 32. Rd8+ {[%emt 0:00:00]} Kh7 {[%emt 0:00:00]} 33. Nd5 {[%emt 0:00:00]} Ra6 {[%emt 0:00:00]} 34. Rc8 {[%emt 0:00:00]} g6 {[%emt 0:00:00]} 35. g4 {[%emt 0:00:00]} Rd6 {[%emt 0:00:00]} 36. e4 {[%emt 0:00:00]} a4 {[%emt 0:00:00]} 37. Rb1 {[%emt 0:00:00]} a3 {[%emt 0:00:00]} 38. Rb7 {[%emt 0:00:00]} Kg7 {[%emt 0:00:00]} 39. e5 {[%emt 0:01:32]} gxf5 {[%emt 0:00:00]} 40. exd6 {[%emt 0:00:22]} fxg4+ {[%emt 0:00:00]} 41. Kg2 {[%emt 0:30:19]} Ra4 {[%emt 0:19:45]} 42. d7 {[%emt 0:01:18]} a2 {[%emt 0:00:35]} 43. d8=Q {[%emt 0:00:10]} a1=Q {[%emt 0:00:05]} 44. Qg8# {[%emt 0:08:49]} 1-0

[Event "2nd Serbian League-Vojvodina 2023"]
[Site "Novi Sad"]
[Date "2023.11.02"]
[Round "1.12"]
[White "Veljkovic, Vojislav"]
[Black "Leskovac, Nikola"]
[Result "1/2-1/2"]
[ECO "A46"]
[WhiteElo "2163"]
[BlackElo "1927"]
[Annotator "ChessBase"]
[PlyCount "80"]
[EventDate "2023.10.22"]
[EventType "team-tourn"]
[EventCountry "SRB"]
[SourceTitle "playchess.com"]
[Source "ChessBase"]
[SourceQuality "1"]
[TimeControl "40/5400+30:1800+30"]

1. Nf3 {[%emt 0:01:26]} Nf6 {[%emt 0:01:19]} 2. d4 {[%emt 0:00:55]} e6 {[%emt 0:04:52]} 3. Nbd2 {[%emt 0:03:52]} c5 {[%emt 0:05:39]} 4. c3 {[%emt 0:06:06]} Nc6 {[%emt 0:06:48]} 5. g3 {[%emt 0:02:19]} Be7 {[%emt 0:04:21]} 6. Bg2 {[%emt 0:03:10]} O-O {[%emt 0:01:30]} 7. O-O {[%emt 0:03:20]} b6 {[%emt 0:09:12]} 8. dxc5 {[%emt 0:03:22]} bxc5 {[%emt 0:09:12]} 9. e4 {[%emt 0:08:56]} d5 {[%emt 0:03:08]} 10. exd5 {[%emt 0:04:26]} exd5 {[%emt 0:02:06]} 11. Re1 {[%emt 0:00:21]} Re8 {[%emt 0:07:42]} 12. Nf1 {[%emt 0:02:35]} Be6 {[%emt 0:03:08]} 13. Qa4 {[%emt 0:03:03]} Qc7 {[%emt 0:06:28]} 14. Bf4 {[%emt 0:04:03]} Bd6 {[%emt 0:00:43]} 15. Bxd6 {[%emt 0:00:07]} Qxd6 {[%emt 0:00:02]} 16. Rad1 {[%emt 0:00:08]} h6 {[%emt 0:11:25]} 17. Ne3 {[%emt 0:00:00]} Qc7 {[%emt 0:03:27]} 18. Nd2 {[%emt 0:00:00]} Rac8 {[%emt 0:07:17]} 19. Nb3 {[%emt 0:00:00]} Ne7 {[%emt 0:00:19]} 20. Rd2 {[%emt 0:00:00]} Red8 {[%emt 0:00:59]} 21. Red1 {[%emt 0:00:00]} Rd7 {[%emt 0:04:09]} 22. Bf3 {[%emt 0:00:00]} Qb6 {[%emt 0:01:37]} 23. Ng2 {[%emt 0:00:00]} Rcd8 {[%emt 0:02:29]} 24. Nf4 {[%emt 0:00:00]} Rd6 {[%emt 0:00:42]} 25. Qa3 {[%emt 0:00:00]} Ne4 {[%emt 0:03:02]} 26. Bxe4 {[%emt 0:00:00]} dxe4 {[%emt 0:00:01]} 27. Nxe6 {[%emt 0:00:00]} fxe6 {[%emt 0:00:55]} 28. Rxd6 {[%emt 0:00:00]} Rxd6 {[%emt 0:00:01]} 29. Re1 {[%emt 0:00:00]} c4 {[%emt 0:01:30]} 30. Nc5 {[%emt 0:00:00]} e3 {[%emt 0:00:45]} 31. Rxe3 {[%emt 0:00:00]} Nf5 {[%emt 0:00:00]} 32. Re2 {[%emt 0:00:00]} Rd1+ {[%emt 0:00:00]} 33. Kg2 {[%emt 0:00:00]} Qc6+ {[%emt 0:00:53]} 34. f3 {[%emt 0:00:00]} e5 {[%emt 0:00:00]} 35. Qa4 {[%emt 0:09:30]} a6 36. Qxa6 {[%emt 0:00:00]} Nh4+ {[%emt 0:00:32]} 37. gxh4 Qg6+ {[%emt 0:00:34]} 38. Kh3 {[%emt 0:00:00]} Qf5+ {[%emt 0:00:05]} 39. Kg2 {[%emt 0:00:00]} Qg6+ {[%emt 0:00:06]} 40. Kh3 {[%emt 0:00:00]} Qf5+ {[%emt 0:00:01]} 1/2-1/2

[Event "2nd Serbian League-Vojvodina 2023"]
[Site "Novi Sad"]
[Date "2023.11.02"]
[Round "1.14"]
[White "Pletl, Akos"]
[Black "Jocev, Milan"]
[Result "1/2-1/2"]
[ECO "D10"]
[WhiteElo "2155"]
[BlackElo "2338"]
[Annotator "ChessBase"]
[PlyCount "102"]
[EventDate "2023.10.22"]
[EventType "team-tourn"]
[EventCountry "SRB"]
[SourceTitle "playchess.com"]
[Source "ChessBase"]
[SourceQuality "1"]
[TimeControl "40/5400+30:1800+30"]

1. d4 {[%emt 0:00:06]} d5 {[%emt 0:00:09]} 2. c4 {[%emt 0:00:07]} c6 {[%emt 0:00:12]} 3. cxd5 {[%emt 0:00:16]} cxd5 {[%emt 0:00:09]} 4. Nc3 {[%emt 0:00:08]} Nf6 {[%emt 0:00:29]} 5. Bf4 {[%emt 0:00:15]} Nc6 {[%emt 0:00:21]} 6. e3 {[%emt 0:00:30]} Bf5 {[%emt 0:02:26]} 7. Qb3 {[%emt 0:02:31]} Na5 {[%emt 0:00:57]} 8. Qa4+ {[%emt 0:00:46]} Bd7 {[%emt 0:00:24]} 9. Qc2 {[%emt 0:00:36]} Rc8 {[%emt 0:00:40]} 10. Bd3 {[%emt 0:01:32]} e6 {[%emt 0:00:26]} 11. Nf3 {[%emt 0:01:31]} Be7 {[%emt 0:01:45]} 12. h3 {[%emt 0:01:11]} O-O {[%emt 0:02:49]} 13. O-O {[%emt 0:04:14]} b5 {[%emt 0:02:33]} 14. a3 {[%emt 0:07:34]} Nc4 {[%emt 0:04:29]} 15. Ne5 {[%emt 0:05:42]} h6 {[%emt 0:16:36]} 16. Qe2 {[%emt 0:05:10]} a5 {[%emt 0:08:50]} 17. Nxd7 {[%emt 0:03:44]} Qxd7 {[%emt 0:01:51]} 18. b3 {[%emt 0:00:41]} Nxa3 {[%emt 0:03:58]} 19. Nxb5 {[%emt 0:01:01]} Nxb5 {[%emt 0:00:51]} 20. Bxb5 {[%emt 0:00:09]} Qd8 {[%emt 0:00:40]} 21. Rfc1 {[%emt 0:07:09]} Qb6 {[%emt 0:02:16]} 22. Qd3 {[%emt 0:03:24]} Bd6 {[%emt 0:06:49]} 23. Bxd6 {[%emt 0:09:09]} Qxd6 {[%emt 0:00:25]} 24. Qd2 {[%emt 0:45:04]} Qb6 {[%emt 0:08:45]} 25. Rxc8 {[%emt 0:00:00]} Rxc8 {[%emt 0:34:10]} 26. Bd3 {[%emt 0:00:00]} Qxb3 {[%emt 0:00:00]} 27. Rxa5 {[%emt 0:00:00]} g6 {[%emt 0:00:00]} 28. Rb5 {[%emt 0:00:00]} Qc3 {[%emt 0:00:00]} 29. Rb2 {[%emt 0:00:00]} Qc1+ {[%emt 0:00:00]} 30. Kh2 {[%emt 0:00:00]} Qc7+ {[%emt 0:00:00]} 31. Kg1 {[%emt 0:00:00]} Kg7 {[%emt 0:00:00]} 32. Rc2 {[%emt 0:00:00]} Qb7 {[%emt 0:00:00]} 33. Rb2 {[%emt 0:00:00]} Qa7 {[%emt 0:00:00]} 34. Ra2 {[%emt 0:00:00]} Rc1+ {[%emt 0:00:00]} 35. Qxc1 {[%emt 0:00:00]} Qxa2 {[%emt 0:00:00]} 36. Qc2 {[%emt 0:00:00]} Qa1+ {[%emt 0:00:00]} 37. Kh2 {[%emt 0:00:00]} g5 {[%emt 0:00:00]} 38. Qd2 {[%emt 0:00:00]} g4 {[%emt 0:00:00]} 39. f3 {[%emt 0:00:00]} gxf3 {[%emt 0:00:00]} 40. gxf3 {[%emt 0:00:00]} Qa3 {[%emt 0:00:00]} 41. Kg2 {[%emt 0:24:51]} Nh5 {[%emt 0:25:41]} 42. Bb1 {[%emt 0:00:55]} Qd6 {[%emt 0:02:56]} 43. Qf2 {[%emt 0:00:24]} Qa3 {[%emt 0:01:41]} 44. Qd2 {[%emt 0:00:44]} Qe7 {[%emt 0:01:09]} 45. Qf2 {[%emt 0:00:48]} e5 {[%emt 0:03:35]} 46. dxe5 {[%emt 0:00:54]} Qxe5 {[%emt 0:00:06]} 47. f4 {[%emt 0:00:20]} Qc3 {[%emt 0:01:17]} 48. Qc2 {[%emt 0:03:36]} Qf6 {[%emt 0:02:01]} 49. Qf5 {[%emt 0:00:43]} Qb2+ {[%emt 0:00:23]} 50. Qc2 {[%emt 0:00:08]} Qf6 {[%emt 0:00:15]} 51. Qf5 {[%emt 0:00:21]} Qb2+ {[%emt 0:00:15]} 1/2-1/2

[Event "2nd Serbian League-Vojvodina 2023"]
[Site "Novi Sad"]
[Date "2023.11.02"]
[Round "1.15"]
[White "Stankovic, Milos M"]
[Black "Nagy, Attila N"]
[Result "1/2-1/2"]
[ECO "E01"]
[WhiteElo "2249"]
[BlackElo "2164"]
[Annotator "ChessBase"]
[PlyCount "74"]
[EventDate "2023.10.22"]
[EventType "team-tourn"]
[EventCountry "SRB"]
[SourceTitle "playchess.com"]
[Source "ChessBase"]
[SourceQuality "1"]
[TimeControl "40/5400+30:1800+30"]

1. d4 {[%emt 0:00:00]} Nf6 {[%emt 0:01:26]} 2. c4 e6 {[%emt 1:30:04]} 3. Nc3 {[%emt 1:32:00]} Bb4 {[%emt 0:00:00]} 4. g3 O-O {[%emt 0:00:00]} 5. Bg2 d5 {[%emt 0:01:30]} 6. Nf3 {[%emt 0:01:30]} dxc4 {[%emt 0:00:30]} 7. O-O {[%emt 0:00:00]} c6 8. a4 {[%emt 0:01:00]} Nbd7 {[%emt 0:00:00]} 9. Qc2 a5 {[%emt 0:01:30]} 10. Rd1 {[%emt 0:01:00]} Qe7 {[%emt 0:00:00]} 11. e4 {[%emt 0:00:00]} e5 {[%emt 0:00:00]} 12. d5 {[%emt 0:00:00]} Nc5 {[%emt 0:00:00]} 13. Nd2 cxd5 {[%emt 0:02:00]} 14. exd5 {[%emt 0:00:00]} Bg4 {[%emt 0:00:30]} 15. Rf1 {[%emt 0:02:30]} Rac8 {[%emt 0:00:00]} 16. Nxc4 {[%emt 0:00:30]} Bh5 {[%emt 0:01:00]} 17. Nb6 {[%emt 0:00:00]} Rcd8 {[%emt 0:00:00]} 18. Be3 Bg6 {[%emt 0:01:00]} 19. Qd1 {[%emt 0:01:30]} Qc7 {[%emt 0:00:00]} 20. Nc4 {[%emt 0:00:00]} Nd3 {[%emt 0:00:00]} 21. Qb3 {[%emt 0:00:00]} Nxb2 {[%emt 0:00:00]} 22. Qxb2 {[%emt 0:00:00]} Qxc4 {[%emt 0:00:00]} 23. Rac1 Qg4 {[%emt 0:02:30]} 24. h3 {[%emt 0:00:00]} Qd7 {[%emt 0:00:00]} 25. Rfd1 {[%emt 0:00:00]} Rc8 {[%emt 0:01:00]} 26. Nb5 {[%emt 0:03:30]} Rxc1 {[%emt 0:00:00]} 27. Bxc1 {[%emt 0:00:30]} Be4 {[%emt 0:01:00]} 28. Bxe4 {[%emt 0:00:00]} Nxe4 {[%emt 0:00:00]} 29. Qxe5 Re8 {[%emt 0:01:00]} 30. Qh5 {[%emt 0:01:30]} Bc5 {[%emt 0:00:30]} 31. Kg2 {[%emt 0:00:30]} Nxf2 {[%emt 0:00:00]} 32. Rd2 {[%emt 0:00:00]} Re5 33. Qxe5 {[%emt 0:00:00]} Qxh3+ 34. Kf3 {[%emt 0:01:30]} Qg4+ {[%emt 0:00:00]} 35. Kg2 Qh3+ {[%emt 0:01:39]} 36. Kf3 Qg4+ {[%emt 0:01:21]} 37. Kg2 {[%emt 0:00:00]} Qd7 {[%emt 0:00:30]} 1/2-1/2

[Event "2nd Serbian League-Vojvodina 2023"]
[Site "Novi Sad"]
[Date "2023.11.02"]
[Round "1.16"]
[White "Gusev, Mikhail"]
[Black "Milekic, Daniel"]
[Result "1-0"]
[ECO "B42"]
[WhiteElo "2012"]
[BlackElo "2236"]
[Annotator "ChessBase"]
[PlyCount "67"]
[EventDate "2023.10.22"]
[EventType "team-tourn"]
[EventCountry "SRB"]
[SourceTitle "playchess.com"]
[Source "ChessBase"]
[SourceQuality "1"]
[TimeControl "40/5400+30:1800+30"]

1. e4 {[%emt 0:00:04]} c5 {[%emt 0:00:29]} 2. Nf3 {[%emt 0:00:04]} d6 {[%emt 0:00:15]} 3. d4 {[%emt 0:00:11]} cxd4 {[%emt 0:00:12]} 4. Nxd4 {[%emt 0:00:01]} Nf6 {[%emt 0:00:14]} 5. Nc3 {[%emt 0:00:13]} a6 {[%emt 0:00:14]} 6. Be3 {[%emt 0:00:29]} Ng4 {[%emt 0:00:53]} 7. Bc1 {[%emt 0:00:21]} Nf6 {[%emt 0:00:09]} 8. Be3 {[%emt 0:00:12]} e6 {[%emt 0:00:39]} 9. Bd3 {[%emt 0:00:42]} b5 {[%emt 0:01:23]} 10. a3 {[%emt 0:00:36]} Bb7 {[%emt 0:00:28]} 11. O-O {[%emt 0:00:29]} Nbd7 {[%emt 0:01:05]} 12. f4 {[%emt 0:01:49]} Qc7 {[%emt 0:01:41]} 13. Qe1 {[%emt 0:04:13]} Ng4 {[%emt 0:10:29]} 14. Rd1 {[%emt 0:14:56]} Nxe3 {[%emt 0:02:26]} 15. Qxe3 {[%emt 0:00:01]} Qc5 {[%emt 0:09:50]} 16. Rfe1 {[%emt 0:06:16]} g6 {[%emt 0:05:33]} 17. e5 {[%emt 0:09:35]} Bg7 {[%emt 0:43:18]} 18. Be4 {[%emt 0:02:18]} d5 {[%emt 0:01:24]} 19. Bf3 {[%emt 0:18:58]} Nb6 {[%emt 0:03:34]} 20. b4 {[%emt 0:05:12]} Qe7 {[%emt 0:04:42]} 21. Ndxb5 {[%emt 0:02:01]} axb5 {[%emt 0:01:14]} 22. Qxb6 {[%emt 0:00:10]} O-O {[%emt 0:00:23]} 23. Nxb5 {[%emt 0:01:11]} Rfb8 {[%emt 0:03:26]} 24. Qe3 {[%emt 0:03:36]} Bf8 {[%emt 0:00:54]} 25. Ra1 {[%emt 0:06:24]} Ba6 {[%emt 0:01:47]} 26. Nd6 {[%emt 0:01:54]} Qd7 {[%emt 0:01:28]} 27. f5 {[%emt 0:01:34]} gxf5 {[%emt 0:01:52]} 28. Qg5+ {[%emt 0:00:17]} Kh8 {[%emt 0:00:17]} 29. Qf6+ {[%emt 0:00:47]} Bg7 {[%emt 0:00:10]} 30. Qxf7 {[%emt 0:02:13]} Ra7 {[%emt 0:00:52]} 31. Qxd7 {[%emt 0:01:02]} Rxd7 {[%emt 0:00:02]} 32. b5 {[%emt 0:00:54]} Rxd6 {[%emt 0:04:23]} 33. exd6 {[%emt 0:00:16]} Bd4+ {[%emt 0:00:26]} 34. Kh1 {[%emt 0:01:10]} 1-0

[Event "2nd Serbian League-Vojvodina 2023"]
[Site "Novi Sad"]
[Date "2023.11.02"]
[Round "1.19"]
[White "Georgiev, Krum"]
[Black "Bokros, Albert"]
[Result "1/2-1/2"]
[ECO "B40"]
[WhiteElo "2294"]
[BlackElo "2447"]
[Annotator "ChessBase"]
[PlyCount "67"]
[EventDate "2023.10.22"]
[EventType "team-tourn"]
[EventCountry "SRB"]
[SourceTitle "playchess.com"]
[Source "ChessBase"]
[SourceQuality "1"]
[TimeControl "40/5400+30:1800+30"]

1. e4 {[%emt 0:00:08]} c5 {[%emt 0:00:54]} 2. Nf3 {[%emt 0:00:17]} e6 {[%emt 0:00:27]} 3. b3 {[%emt 0:00:48]} b6 {[%emt 0:00:35]} 4. d4 {[%emt 0:00:31]} cxd4 {[%emt 0:00:11]} 5. Bb2 {[%emt 0:00:48]} Bb7 {[%emt 0:01:57]} 6. Bd3 {[%emt 0:08:47]} d6 {[%emt 0:04:13]} 7. Nxd4 {[%emt 0:00:40]} Nf6 {[%emt 0:00:22]} 8. Nd2 {[%emt 0:01:41]} Nbd7 {[%emt 0:01:16]} 9. O-O {[%emt 0:00:31]} a6 {[%emt 0:01:35]} 10. f4 {[%emt 0:03:11]} Nc5 {[%emt 0:06:06]} 11. Qf3 {[%emt 0:02:24]} Be7 {[%emt 0:04:30]} 12. Rae1 {[%emt 0:01:45]} O-O {[%emt 0:03:44]} 13. Qh3 {[%emt 0:08:33]} Rc8 {[%emt 0:06:41]} 14. c4 {[%emt 0:10:15]} Nxd3 {[%emt 0:02:35]} 15. Qxd3 {[%emt 0:02:09]} Re8 {[%emt 0:09:04]} 16. f5 {[%emt 0:11:39]} e5 {[%emt 0:02:38]} 17. Ne2 {[%emt 0:00:23]} b5 {[%emt 0:09:20]} 18. Nc3 {[%emt 0:02:50]} b4 {[%emt 0:03:21]} 19. Nd5 {[%emt 0:00:44]} Nd7 {[%emt 0:03:17]} 20. Kh1 {[%emt 0:02:39]} a5 {[%emt 0:02:30]} 21. Qh3 {[%emt 0:06:44]} Bf6 {[%emt 0:04:06]} 22. Re2 {[%emt 0:06:11]} Nc5 {[%emt 0:02:24]} 23. Bc1 {[%emt 0:05:58]} Bxd5 {[%emt 0:02:54]} 24. cxd5 {[%emt 0:00:06]} Bg5 {[%emt 0:03:21]} 25. Nc4 {[%emt 0:00:12]} Bxc1 {[%emt 0:01:15]} 26. Rxc1 {[%emt 0:00:03]} a4 {[%emt 0:02:08]} 27. Qe3 {[%emt 0:00:13]} Nb7 {[%emt 0:08:10]} 28. Rec2 {[%emt 0:01:49]} Rc5 {[%emt 0:01:41]} 29. Qd2 {[%emt 0:00:40]} axb3 {[%emt 0:00:50]} 30. axb3 {[%emt 0:00:03]} Rb5 {[%emt 0:01:15]} 31. Qe2 {[%emt 0:06:32]} Rc5 {[%emt 0:00:55]} 32. Qd2 {[%emt 0:09:05]} Rb5 {[%emt 0:00:06]} 33. Qe2 {[%emt 0:01:23]} Rc5 {[%emt 0:00:06]} 34. Qd2 {[%emt 0:00:35]} 1/2-1/2

[Event "2nd Serbian League-Vojvodina 2023"]
[Site "Novi Sad"]
[Date "2023.11.02"]
[Round "1.21"]
[White "Mijatovic, Dusan"]
[Black "Strbac, Mladen"]
[Result "1/2-1/2"]
[ECO "C18"]
[WhiteElo "2139"]
[BlackElo "2246"]
[Annotator "ChessBase"]
[PlyCount "85"]
[EventDate "2023.10.22"]
[EventType "team-tourn"]
[EventCountry "SRB"]
[SourceTitle "playchess.com"]
[Source "ChessBase"]
[SourceQuality "1"]
[TimeControl "40/5400+30:1800+30"]

1. e4 {[%emt 0:00:05]} e6 {[%emt 0:00:07]} 2. d4 {[%emt 0:00:05]} d5 {[%emt 0:00:10]} 3. Nc3 {[%emt 0:00:04]} Bb4 {[%emt 0:00:26]} 4. e5 {[%emt 0:00:08]} c5 {[%emt 0:00:25]} 5. a3 {[%emt 0:00:06]} Ba5 {[%emt 0:00:13]} 6. b4 {[%emt 0:00:34]} cxd4 {[%emt 0:00:34]} 7. Qg4 {[%emt 0:00:06]} Kf8 {[%emt 0:00:40]} 8. Nb5 {[%emt 0:00:32]} Bb6 {[%emt 0:00:53]} 9. Nf3 {[%emt 0:00:59]} Nc6 {[%emt 0:00:57]} 10. Bb2 {[%emt 0:00:09]} Nge7 {[%emt 0:01:18]} 11. Bd3 {[%emt 0:10:50]} Ng6 {[%emt 0:03:12]} 12. Bxg6 {[%emt 0:21:57]} hxg6 {[%emt 1:27:35]} 13. Qf4 {[%emt 1:01:25]} Kg8 {[%emt 0:00:00]} 14. O-O {[%emt 0:00:00]} f6 {[%emt 0:00:00]} 15. Qg3 {[%emt 0:00:00]} Nxe5 {[%emt 0:00:00]} 16. Nxe5 {[%emt 0:00:00]} fxe5 {[%emt 0:00:00]} 17. Qxe5 {[%emt 0:00:00]} Rh5 {[%emt 0:02:30]} 18. Qg3 {[%emt 0:00:00]} e5 {[%emt 0:00:30]} 19. a4 {[%emt 0:03:00]} a6 {[%emt 0:00:30]} 20. a5 {[%emt 0:00:30]} axb5 {[%emt 0:00:00]} 21. axb6 {[%emt 0:00:30]} Rxa1 {[%emt 0:01:00]} 22. Rxa1 {[%emt 0:00:30]} Qxb6 {[%emt 0:00:30]} 23. Ra8 {[%emt 0:00:00]} Qc6 {[%emt 0:00:30]} 24. c3 {[%emt 0:00:00]} Kh7 {[%emt 0:00:00]} 25. h3 {[%emt 0:00:00]} dxc3 {[%emt 0:01:00]} 26. Qxc3 {[%emt 0:02:00]} Qxc3 {[%emt 0:00:00]} 27. Bxc3 {[%emt 0:00:00]} Bd7 {[%emt 0:01:00]} 28. Rf8 {[%emt 0:01:00]} d4 {[%emt 0:00:30]} 29. Bb2 {[%emt 0:00:00]} Rf5 {[%emt 0:00:30]} 30. Rxf5 {[%emt 0:00:00]} gxf5 {[%emt 0:00:30]} 31. f4 {[%emt 0:00:27]} d3 32. Bc1 {[%emt 0:00:19]} exf4 {[%emt 0:00:00]} 33. Bxf4 {[%emt 0:00:24]} Kg6 34. Kf2 {[%emt 0:01:17]} Kf6 35. Ke3 {[%emt 0:01:03]} Bc6 {[%emt 0:01:28]} 36. g3 {[%emt 0:00:30]} g5 {[%emt 0:01:32]} 37. Bc7 {[%emt 0:00:00]} Bg2 {[%emt 0:00:00]} 38. h4 {[%emt 0:00:00]} gxh4 {[%emt 0:00:00]} 39. Bd8+ Ke5 {[%emt 0:01:30]} 40. Bxh4 {[%emt 0:02:00]} Bf1 {[%emt 0:00:30]} 41. Be7 {[%emt 0:29:44]} Kd5 42. Bf8 {[%emt 0:01:16]} Kc4 {[%emt 0:29:33]} 43. Kd2 {[%emt 0:00:30]} 1/2-1/2